[Event "*** Qualifier 2: Titled Tuesday 3|2 Blitz"]
[Site "Chess.com"]
[Date "2017.04.11"]
[Round "8"]
[White "amaidel"]
[Black "proxy6"]
[Result "1-0"]
[WhiteElo "2442"]
[BlackElo "2201"]
[TimeControl "180+2"]
[EndTime "14:53:38 PDT"]
[Termination "amaidel won by resignation"]

1. e4 {[%clk 0:03:02]} 1... c5 {[%clk 0:03:00]} 2. Nf3 {[%clk 0:03:02.9]} 2...
d6 {[%clk 0:03:01.5]} 3. d4 {[%clk 0:03:03.8]} 3... cxd4 {[%clk 0:03:02.9]} 4.
Nxd4 {[%clk 0:03:05.7]} 4... Nf6 {[%clk 0:03:03.9]} 5. Nc3 {[%clk 0:03:06.7]}
5... Nc6 {[%clk 0:03:05.5]} 6. Bc4 {[%clk 0:03:06.6]} 6... e6 {[%clk 0:03:03.3]}
7. Be3 {[%clk 0:03:06.2]} 7... a6 {[%clk 0:03:03.2]} 8. Bb3 {[%clk 0:03:07.1]}
8... Bd7 {[%clk 0:03:01.1]} 9. Qe2 {[%clk 0:03:07.7]} 9... b5 {[%clk 0:02:59.5]}
10. O-O-O {[%clk 0:03:03.2]} 10... Qc7 {[%clk 0:03:00.6]} 11. Nxc6 {[%clk
0:02:48.3]} 11... Bxc6 {[%clk 0:02:56.9]} 12. Bd4 {[%clk 0:02:31.9]} 12... Be7
{[%clk 0:02:52]} 13. e5 {[%clk 0:02:25]} 13... dxe5 {[%clk 0:02:45.7]} 14. Bxe5
{[%clk 0:02:25.5]} 14... Qb7 {[%clk 0:02:46]} 15. f3 {[%clk 0:02:24.5]} 15...
O-O {[%clk 0:02:46.1]} 16. Kb1 {[%clk 0:02:12.5]} 16... Rfd8 {[%clk 0:02:42.5]}
17. Rxd8+ {[%clk 0:02:12.4]} 17... Rxd8 {[%clk 0:02:44.4]} 18. Rd1 {[%clk
0:02:13.6]} 18... Qc8 {[%clk 0:02:39.7]} 19. a3 {[%clk 0:02:04.5]} 19... Nd7
{[%clk 0:02:27.8]} 20. Bd6 {[%clk 0:02:00.9]} 20... Bxd6 {[%clk 0:02:22.5]} 21.
Rxd6 {[%clk 0:02:02.8]} 21... Nc5 {[%clk 0:02:20.4]} 22. Qd2 {[%clk 0:01:59.6]}
22... Rxd6 {[%clk 0:02:14]} 23. Qxd6 {[%clk 0:02:01.5]} 23... Nxb3 {[%clk
0:02:15.1]} 24. cxb3 {[%clk 0:02:03.4]} 24... Qd7 {[%clk 0:02:13.9]} 25. Qxd7
{[%clk 0:02:02.9]} 25... Bxd7 {[%clk 0:02:14.4]} 26. b4 {[%clk 0:02:03.8]} 26...
Bc6 {[%clk 0:02:13.4]} 27. Kc2 {[%clk 0:02:04]} 27... Kf8 {[%clk 0:02:13]} 28.
Kd3 {[%clk 0:02:00.9]} 28... Ke7 {[%clk 0:02:13.5]} 29. Ne2 {[%clk 0:01:54.7]}
29... Kd6 {[%clk 0:02:12.3]} 30. Nc1 {[%clk 0:01:54.7]} 30... Bd5 {[%clk
0:02:09.4]} 31. Ke3 {[%clk 0:01:55.8]} 31... Bc4 {[%clk 0:02:08.2]} 32. b3
{[%clk 0:01:56.7]} 32... Bd5 {[%clk 0:02:09]} 33. Nd3 {[%clk 0:01:51.3]} 33...
Kc7 {[%clk 0:02:00.4]} 34. Nc5 {[%clk 0:01:52.4]} 34... Kb6 {[%clk 0:02:01]} 35.
Kd4 {[%clk 0:01:44.7]} 35... f6 {[%clk 0:01:51.8]} 36. Nd7+ {[%clk 0:01:44.9]}
36... Kc7 {[%clk 0:01:45.6]} 37. Nc5 {[%clk 0:01:45.8]} 37... Kb6 {[%clk
0:01:46.3]} 38. a4 {[%clk 0:01:46.1]} 38... h6 {[%clk 0:01:37.2]} 39. a5+ {[%clk
0:01:44.7]} 39... Kc6 {[%clk 0:01:32.5]} 40. Nxa6 {[%clk 0:01:43.3]} 40... Bxb3
{[%clk 0:01:33.7]} 41. Nc5 {[%clk 0:01:43.7]} 41... Bd5 {[%clk 0:01:34.2]} 42.
Ke3 {[%clk 0:01:42.9]} 42... e5 {[%clk 0:01:32.8]} 43. g4 {[%clk 0:01:43.5]}
43... g6 {[%clk 0:01:33]} 44. f4 {[%clk 0:01:41]} 44... Kd6 {[%clk 0:01:31.8]}
45. h4 {[%clk 0:01:39.9]} 45... f5 {[%clk 0:01:18.4]} 46. g5 {[%clk 0:01:36.3]}
46... hxg5 {[%clk 0:01:18.6]} 47. hxg5 {[%clk 0:01:36.6]} 47... exf4+ {[%clk
0:01:15.3]} 48. Kxf4 {[%clk 0:01:38.5]} 48... Bc6 {[%clk 0:01:11.4]} 49. Nd3
{[%clk 0:01:36.4]} 49... Kd5 {[%clk 0:01:00.6]} 50. Ke3 {[%clk 0:01:31.2]} 50...
Ba8 {[%clk 0:00:47.1]} 51. Nf4+ {[%clk 0:01:24.5]} 51... Kc4 {[%clk 0:00:48.4]}
52. Nxg6 {[%clk 0:01:26]} 52... Kxb4 {[%clk 0:00:49.9]} 53. Ne7 {[%clk
0:01:27.5]} 53... Kxa5 {[%clk 0:00:49.1]} 54. g6 {[%clk 0:01:28.3]} 54... b4
{[%clk 0:00:50.4]} 55. g7 {[%clk 0:01:29.1]} 55... b3 {[%clk 0:00:50.3]} 56.
g8=Q {[%clk 0:01:29.9]} 1-0

[Event "*** Qualifier 2: Titled Tuesday 3|2 Blitz"]
[Site "Chess.com"]
[Date "2017.04.11"]
[Round "8"]
[White "FancyPlaySyndrome"]
[Black "Generalas"]
[Result "1-0"]
[WhiteElo "2390"]
[BlackElo "2210"]
[TimeControl "180+2"]
[EndTime "14:53:42 PDT"]
[Termination "FancyPlaySyndrome won by resignation"]

1. e4 {[%clk 0:03:02]} 1... e5 {[%clk 0:03:00.5]} 2. Nf3 {[%clk 0:03:03.1]} 2...
Nc6 {[%clk 0:03:01.5]} 3. Bb5 {[%clk 0:03:04.7]} 3... a6 {[%clk 0:03:02.1]} 4.
Ba4 {[%clk 0:03:06.4]} 4... Nf6 {[%clk 0:03:02.7]} 5. O-O {[%clk 0:03:07.2]}
5... Be7 {[%clk 0:03:03.7]} 6. Re1 {[%clk 0:03:08.3]} 6... b5 {[%clk 0:03:04.6]}
7. Bb3 {[%clk 0:03:09.9]} 7... O-O {[%clk 0:03:05.5]} 8. c3 {[%clk 0:03:11.3]}
8... d5 {[%clk 0:03:05.8]} 9. exd5 {[%clk 0:03:11.5]} 9... Nxd5 {[%clk
0:03:07.7]} 10. Nxe5 {[%clk 0:03:13.2]} 10... Nxe5 {[%clk 0:03:08.2]} 11. Rxe5
{[%clk 0:03:15.1]} 11... c6 {[%clk 0:03:07.4]} 12. d4 {[%clk 0:03:16.3]} 12...
Bd6 {[%clk 0:03:08.3]} 13. Re1 {[%clk 0:03:18]} 13... Qh4 {[%clk 0:03:08.8]} 14.
g3 {[%clk 0:03:19.7]} 14... Qh3 {[%clk 0:03:09.7]} 15. Qd3 {[%clk 0:03:21.4]}
15... Bf5 {[%clk 0:02:55.6]} 16. Qf1 {[%clk 0:03:21.8]} 16... Rae8 {[%clk
0:02:40.6]} 17. Be3 {[%clk 0:03:21.4]} 17... Qh5 {[%clk 0:01:33.7]} 18. Bd1
{[%clk 0:03:20.7]} 18... Qg6 {[%clk 0:01:29.8]} 19. Nd2 {[%clk 0:03:21.2]} 19...
c5 {[%clk 0:01:24.5]} 20. Bf3 {[%clk 0:03:16.9]} 20... Nxe3 {[%clk 0:01:22.8]}
21. fxe3 {[%clk 0:03:17.9]} 21... Bd3 {[%clk 0:01:21.3]} 22. Qg2 {[%clk
0:03:18.9]} 22... f5 {[%clk 0:01:21.8]} 23. a4 {[%clk 0:03:07.4]} 23... Qg5
{[%clk 0:01:20.6]} 24. axb5 {[%clk 0:02:54.9]} 24... axb5 {[%clk 0:01:19.3]} 25.
Bc6 {[%clk 0:02:55.8]} 25... Rd8 {[%clk 0:01:10.6]} 26. Nb3 {[%clk 0:02:45.4]}
26... c4 {[%clk 0:00:58.2]} 27. Nd2 {[%clk 0:02:46.4]} 27... b4 {[%clk
0:00:59.6]} 28. Bd5+ {[%clk 0:02:43.2]} 28... Kh8 {[%clk 0:00:59.3]} 29. Bxc4
{[%clk 0:02:44.4]} 29... bxc3 {[%clk 0:00:52.3]} 30. bxc3 {[%clk 0:02:40.2]}
30... Be4 {[%clk 0:00:50.6]} 31. Nxe4 {[%clk 0:02:39.2]} 31... fxe4 {[%clk
0:00:51.7]} 32. Bf1 {[%clk 0:02:21.7]} 32... Rf3 {[%clk 0:00:50.5]} 33. Qe2
{[%clk 0:02:18.2]} 33... Rdf8 {[%clk 0:00:43.1]} 34. Bg2 {[%clk 0:02:15.3]}
34... Bxg3 {[%clk 0:00:43.6]} 35. hxg3 {[%clk 0:02:10.4]} 35... Qxg3 {[%clk
0:00:42]} 36. Rf1 {[%clk 0:02:08.4]} 36... h5 {[%clk 0:00:42.7]} 37. d5 {[%clk
0:01:56]} 37... h4 {[%clk 0:00:42.6]} 38. Kh1 {[%clk 0:01:55.5]} 38... Rf2
{[%clk 0:00:36.8]} 39. Rxf2 {[%clk 0:01:56.2]} 39... Rxf2 {[%clk 0:00:34.3]} 40.
Qh5+ {[%clk 0:01:57.4]} 40... Kg8 {[%clk 0:00:34.9]} 41. Ra8+ {[%clk 0:01:58.9]}
41... Rf8 {[%clk 0:00:35]} 42. Rxf8+ {[%clk 0:01:54]} 42... Kxf8 {[%clk
0:00:35.9]} 43. Qf5+ {[%clk 0:01:55.5]} 43... Kg8 {[%clk 0:00:34.4]} 44. Bxe4
{[%clk 0:01:35.4]} 44... Qe1+ {[%clk 0:00:26.8]} 45. Kg2 {[%clk 0:01:36.7]}
45... Qg3+ {[%clk 0:00:27.2]} 46. Kf1 {[%clk 0:01:37.6]} 46... h3 {[%clk
0:00:28.3]} 47. d6 {[%clk 0:01:21.6]} 47... Qxd6 {[%clk 0:00:23.5]} 48. Qd5+
{[%clk 0:01:22.8]} 48... Qxd5 {[%clk 0:00:20.4]} 49. Bxd5+ {[%clk 0:01:24.7]}
1-0

[Event "*** Qualifier 2: Titled Tuesday 3|2 Blitz"]
[Site "Chess.com"]
[Date "2017.04.11"]
[Round "8"]
[White "kleinebeer98"]
[Black "dhanushbharadwaj"]
[Result "0-1"]
[WhiteElo "2459"]
[BlackElo "2343"]
[TimeControl "180+2"]
[EndTime "14:53:50 PDT"]
[Termination "dhanushbharadwaj won on time"]

1. e4 {[%clk 0:03:02]} 1... c5 {[%clk 0:03:00.3]} 2. Nf3 {[%clk 0:03:02.8]} 2...
d6 {[%clk 0:03:01]} 3. d4 {[%clk 0:03:04.3]} 3... cxd4 {[%clk 0:03:01.6]} 4.
Nxd4 {[%clk 0:03:06.2]} 4... Nf6 {[%clk 0:03:03]} 5. Nc3 {[%clk 0:03:07.8]} 5...
a6 {[%clk 0:03:04.4]} 6. Rg1 {[%clk 0:03:09.1]} 6... e5 {[%clk 0:03:04.9]} 7.
Nb3 {[%clk 0:03:09]} 7... h5 {[%clk 0:03:04.3]} 8. h3 {[%clk 0:03:10.1]} 8...
Be6 {[%clk 0:03:02.8]} 9. g4 {[%clk 0:03:11]} 9... hxg4 {[%clk 0:03:04.7]} 10.
hxg4 {[%clk 0:03:12.9]} 10... g6 {[%clk 0:03:04.4]} 11. g5 {[%clk 0:03:05.1]}
11... Nh5 {[%clk 0:03:04.3]} 12. Be3 {[%clk 0:03:02.5]} 12... Nd7 {[%clk
0:03:04.2]} 13. Nd5 {[%clk 0:02:59.7]} 13... Rc8 {[%clk 0:03:01]} 14. Be2 {[%clk
0:02:54.3]} 14... Bg7 {[%clk 0:02:45.3]} 15. c4 {[%clk 0:02:27.8]} 15... Bxd5
{[%clk 0:02:25.9]} 16. cxd5 {[%clk 0:02:27]} 16... Nf4 {[%clk 0:02:25.8]} 17.
Bg4 {[%clk 0:02:22.8]} 17... Rc4 {[%clk 0:02:24.1]} 18. Rc1 {[%clk 0:01:45.9]}
18... Qc7 {[%clk 0:01:57.8]} 19. Bxd7+ {[%clk 0:00:59.6]} 19... Kxd7 {[%clk
0:01:57.6]} 20. Bxf4 {[%clk 0:00:47.8]} 20... exf4 {[%clk 0:01:57.8]} 21. Qg4+
{[%clk 0:00:47.6]} 21... Ke7 {[%clk 0:01:57.6]} 22. Qxf4 {[%clk 0:00:47.4]}
22... Bxb2 {[%clk 0:01:48.9]} 23. Rxc4 {[%clk 0:00:41.9]} 23... Qxc4 {[%clk
0:01:50.8]} 24. Qe3 {[%clk 0:00:17.5]} 24... Rh4 {[%clk 0:01:22.8]} 25. f4
{[%clk 0:00:16.8]} 25... Rh2 {[%clk 0:01:07.5]} 26. e5 {[%clk 0:00:11.3]} 26...
Bc3+ {[%clk 0:00:42.9]} 27. Kd1 {[%clk 0:00:11]} 27... Qxd5+ {[%clk 0:00:42.8]}
28. Kc1 {[%clk 0:00:12.5]} 28... Qc4 {[%clk 0:00:20.8]} 29. exd6+ {[%clk
0:00:06.4]} 29... Kf8 {[%clk 0:00:22]} 30. Kb1 {[%clk 0:00:04.8]} 30... Be5
{[%clk 0:00:15.8]} 31. Qc1 {[%clk 0:00:02.2]} 31... Qd3+ {[%clk 0:00:16.4]} 0-1

[Event "*** Qualifier 2: Titled Tuesday 3|2 Blitz"]
[Site "Chess.com"]
[Date "2017.04.11"]
[Round "8"]
[White "feigelag"]
[Black "Indianlad"]
[Result "1-0"]
[WhiteElo "2248"]
[BlackElo "2593"]
[TimeControl "180+2"]
[EndTime "14:54:20 PDT"]
[Termination "feigelag won by resignation"]

1. d4 {[%clk 0:03:02]} 1... Nf6 {[%clk 0:02:59.4]} 2. c4 {[%clk 0:03:02]} 2...
e6 {[%clk 0:02:59.2]} 3. Nc3 {[%clk 0:02:58.2]} 3... Bb4 {[%clk 0:03:00.6]} 4.
e3 {[%clk 0:02:59.2]} 4... b6 {[%clk 0:03:00.6]} 5. Ne2 {[%clk 0:02:59]} 5...
Bb7 {[%clk 0:03:01.7]} 6. a3 {[%clk 0:02:58.2]} 6... Be7 {[%clk 0:03:02]} 7. d5
{[%clk 0:02:50.9]} 7... O-O {[%clk 0:03:02.2]} 8. g3 {[%clk 0:02:48.4]} 8... b5
{[%clk 0:03:00.1]} 9. Bg2 {[%clk 0:02:45.3]} 9... bxc4 {[%clk 0:02:59.7]} 10. e4
{[%clk 0:02:43.6]} 10... e5 {[%clk 0:02:52.4]} 11. Qa4 {[%clk 0:02:36.5]} 11...
Bc5 {[%clk 0:02:48.7]} 12. O-O {[%clk 0:02:35.1]} 12... d6 {[%clk 0:02:49.1]}
13. Qxc4 {[%clk 0:02:33.3]} 13... c6 {[%clk 0:02:50.6]} 14. dxc6 {[%clk
0:02:27.2]} 14... Nxc6 {[%clk 0:02:50]} 15. Bg5 {[%clk 0:02:19.3]} 15... h6
{[%clk 0:02:50.8]} 16. Bxf6 {[%clk 0:02:19.8]} 16... Qxf6 {[%clk 0:02:52.7]} 17.
b4 {[%clk 0:02:20.2]} 17... Bb6 {[%clk 0:02:49.9]} 18. Nd5 {[%clk 0:02:21.4]}
18... Qd8 {[%clk 0:02:50.8]} 19. Nxb6 {[%clk 0:02:11]} 19... Qxb6 {[%clk
0:02:51.7]} 20. b5 {[%clk 0:02:04.2]} 20... Ne7 {[%clk 0:02:49.4]} 21. a4 {[%clk
0:02:02]} 21... a6 {[%clk 0:02:39.3]} 22. Rfd1 {[%clk 0:01:46.1]} 22... Rac8
{[%clk 0:02:40.1]} 23. Qb4 {[%clk 0:01:43.6]} 23... Rc5 {[%clk 0:02:41.5]} 24.
Rac1 {[%clk 0:01:34.2]} 24... Rfc8 {[%clk 0:02:38.1]} 25. Rxc5 {[%clk
0:01:32.8]} 25... Rxc5 {[%clk 0:02:40]} 26. Nc3 {[%clk 0:01:24.5]} 26... a5
{[%clk 0:02:40.6]} 27. Qb3 {[%clk 0:01:22.2]} 27... Qc7 {[%clk 0:02:41.7]} 28.
Rd3 {[%clk 0:01:18.5]} 28... Nc8 {[%clk 0:02:42.1]} 29. Nd1 {[%clk 0:01:10.2]}
29... Nb6 {[%clk 0:02:41]} 30. Ne3 {[%clk 0:01:10.7]} 30... Rc1+ {[%clk
0:02:41.7]} 31. Rd1 {[%clk 0:01:09]} 31... Rxd1+ {[%clk 0:02:36.7]} 32. Qxd1
{[%clk 0:01:09.7]} 32... g6 {[%clk 0:02:37]} 33. h4 {[%clk 0:01:08]} 33... h5
{[%clk 0:02:30.1]} 34. g4 {[%clk 0:01:07.5]} 34... hxg4 {[%clk 0:02:31.1]} 35.
Qxg4 {[%clk 0:01:08.2]} 35... Nxa4 {[%clk 0:02:26.9]} 36. h5 {[%clk 0:01:08.3]}
36... Kh7 {[%clk 0:01:46.3]} 37. Qg5 {[%clk 0:01:03.7]} 37... Qc1+ {[%clk
0:01:39.1]} 38. Kh2 {[%clk 0:01:03.6]} 38... Nc5 {[%clk 0:01:40.4]} 39. Qf6
{[%clk 0:00:58.1]} 39... gxh5 {[%clk 0:00:27.6]} 40. Qxf7+ {[%clk 0:00:51.9]}
40... Kh8 {[%clk 0:00:28.8]} 41. Qf6+ {[%clk 0:00:50.5]} 41... Kh7 {[%clk
0:00:29.5]} 42. Qxd6 {[%clk 0:00:42.7]} 42... Bxe4 {[%clk 0:00:30.3]} 43. Qc7+
{[%clk 0:00:34.2]} 43... Kh6 {[%clk 0:00:31.5]} 44. Bxe4 {[%clk 0:00:35.2]}
44... Qd2 {[%clk 0:00:32.7]} 45. Qh7+ {[%clk 0:00:35.6]} 1-0

[Event "*** Qualifier 2: Titled Tuesday 3|2 Blitz"]
[Site "Chess.com"]
[Date "2017.04.11"]
[Round "8"]
[White "evgenyermolaev"]
[Black "VMikhalevski"]
[Result "0-1"]
[WhiteElo "2366"]
[BlackElo "2546"]
[TimeControl "180+2"]
[EndTime "14:54:32 PDT"]
[Termination "VMikhalevski won by resignation"]

1. e4 {[%clk 0:03:02]} 1... e5 {[%clk 0:03:00.2]} 2. Nf3 {[%clk 0:03:02.6]} 2...
Nc6 {[%clk 0:03:01.7]} 3. Bb5 {[%clk 0:03:03.4]} 3... a6 {[%clk 0:03:02.2]} 4.
Ba4 {[%clk 0:03:03.3]} 4... Nf6 {[%clk 0:03:03.7]} 5. O-O {[%clk 0:03:03.9]}
5... Nxe4 {[%clk 0:03:05.2]} 6. d4 {[%clk 0:03:04]} 6... b5 {[%clk 0:03:06.7]}
7. Bb3 {[%clk 0:03:02]} 7... d5 {[%clk 0:03:08.3]} 8. dxe5 {[%clk 0:03:02.2]}
8... Be6 {[%clk 0:03:09.4]} 9. c3 {[%clk 0:02:52.6]} 9... Bc5 {[%clk 0:03:08.5]}
10. Qe2 {[%clk 0:02:50.6]} 10... O-O {[%clk 0:03:07.1]} 11. Nbd2 {[%clk
0:02:39.3]} 11... Bf5 {[%clk 0:03:07.9]} 12. Rd1 {[%clk 0:02:27.5]} 12... Nxf2
{[%clk 0:02:58.8]} 13. Qxf2 {[%clk 0:02:10]} 13... Bxf2+ {[%clk 0:02:57.9]} 14.
Kxf2 {[%clk 0:02:11.9]} 14... Na5 {[%clk 0:02:57.3]} 15. Nf1 {[%clk 0:02:07.5]}
15... Nxb3 {[%clk 0:02:52.6]} 16. axb3 {[%clk 0:02:09.4]} 16... Bg4 {[%clk
0:02:53.1]} 17. Ne3 {[%clk 0:02:01]} 17... Bxf3 {[%clk 0:02:54.1]} 18. Kxf3
{[%clk 0:01:58.7]} 18... c6 {[%clk 0:02:51.6]} 19. c4 {[%clk 0:01:51.6]} 19...
bxc4 {[%clk 0:02:51.1]} 20. bxc4 {[%clk 0:01:53.5]} 20... Qe7 {[%clk 0:02:49.5]}
21. cxd5 {[%clk 0:01:47.9]} 21... Qxe5 {[%clk 0:02:50.1]} 22. dxc6 {[%clk
0:01:46.7]} 22... Qf6+ {[%clk 0:02:51]} 23. Ke2 {[%clk 0:01:46.6]} 23... Qxc6
{[%clk 0:02:51.2]} 24. Bd2 {[%clk 0:01:47.8]} 24... Rfe8 {[%clk 0:02:49.9]} 25.
Kf2 {[%clk 0:01:45.5]} 25... Qf6+ {[%clk 0:02:49.5]} 26. Kg1 {[%clk 0:01:44.6]}
26... Qd4 {[%clk 0:02:48.2]} 27. Bc1 {[%clk 0:01:38.5]} 27... Qc5 {[%clk
0:02:47.2]} 28. Kf2 {[%clk 0:01:36.7]} 28... Rab8 {[%clk 0:02:45.7]} 29. Rd5
{[%clk 0:01:36]} 29... Rxb2+ {[%clk 0:02:37.3]} 30. Kf1 {[%clk 0:01:22.3]} 30...
Qb6 {[%clk 0:02:27]} 31. Bxb2 {[%clk 0:01:07.8]} 31... Qxe3 {[%clk 0:02:20]} 32.
Bd4 {[%clk 0:00:50.8]} 32... Qd3+ {[%clk 0:02:10.1]} 33. Kg1 {[%clk 0:00:51.4]}
33... h6 {[%clk 0:02:09.6]} 34. h3 {[%clk 0:00:48]} 34... Re2 {[%clk 0:02:02.7]}
35. Rd8+ {[%clk 0:00:41.5]} 35... Kh7 {[%clk 0:02:02.5]} 36. Rf1 {[%clk
0:00:38.4]} 36... Qg6 {[%clk 0:01:54.6]} 37. Bf2 {[%clk 0:00:34.2]} 37... Rb2
{[%clk 0:01:53.4]} 38. Rdd1 {[%clk 0:00:25.2]} 38... Ra2 {[%clk 0:01:51.4]} 39.
Rfe1 {[%clk 0:00:21.4]} 39... Qc2 {[%clk 0:01:47.2]} 40. Rf1 {[%clk 0:00:20.5]}
40... a5 {[%clk 0:01:47.4]} 41. Rc1 {[%clk 0:00:20.7]} 41... Qg6 {[%clk
0:01:47.2]} 42. Rc3 {[%clk 0:00:18.4]} 42... a4 {[%clk 0:01:43.8]} 43. Rg3
{[%clk 0:00:18]} 43... Qd6 {[%clk 0:01:38.3]} 44. Rg4 {[%clk 0:00:14.5]} 44...
Qc6 {[%clk 0:01:31.8]} 45. Bd4 {[%clk 0:00:12.1]} 45... f6 {[%clk 0:01:32.3]}
46. Re1 {[%clk 0:00:09]} 46... Qd6 {[%clk 0:01:24.8]} 47. Rb1 {[%clk 0:00:05.7]}
47... Qd7 {[%clk 0:01:22.5]} 48. Re1 {[%clk 0:00:03.3]} 48... Rd2 {[%clk
0:01:18.4]} 49. Be3 {[%clk 0:00:04.1]} 49... Rd1 {[%clk 0:01:18.4]} 50. Rxd1
{[%clk 0:00:05]} 50... Qxd1+ {[%clk 0:01:19.3]} 51. Kh2 {[%clk 0:00:06.9]} 51...
a3 {[%clk 0:01:18.5]} 52. Ra4 {[%clk 0:00:07.1]} 52... Qxa4 {[%clk 0:01:18.5]}
0-1

[Event "*** Qualifier 2: Titled Tuesday 3|2 Blitz"]
[Site "Chess.com"]
[Date "2017.04.11"]
[Round "8"]
[White "Blitzstream"]
[Black "GM_Splinter"]
[Result "1-0"]
[WhiteElo "2474"]
[BlackElo "2344"]
[TimeControl "180+2"]
[EndTime "14:55:00 PDT"]
[Termination "Blitzstream won by resignation"]

1. d4 {[%clk 0:03:02]} 1... f5 {[%clk 0:03:00.7]} 2. g4 {[%clk 0:03:02.5]} 2...
fxg4 {[%clk 0:02:58.4]} 3. h3 {[%clk 0:03:03.9]} 3... d5 {[%clk 0:02:56]} 4. c4
{[%clk 0:02:54.1]} 4... Nc6 {[%clk 0:02:44.8]} 5. Nc3 {[%clk 0:02:42.8]} 5...
Nf6 {[%clk 0:01:29.5]} 6. Bg5 {[%clk 0:02:32.5]} 6... gxh3 {[%clk 0:01:20.9]} 7.
Bxh3 {[%clk 0:02:18.7]} 7... dxc4 {[%clk 0:01:17]} 8. d5 {[%clk 0:02:15.5]} 8...
Ne5 {[%clk 0:01:17.8]} 9. Qd4 {[%clk 0:02:13.4]} 9... Nf7 {[%clk 0:01:18.5]} 10.
Nf3 {[%clk 0:02:09.5]} 10... Bxh3 {[%clk 0:01:15.7]} 11. Rxh3 {[%clk 0:02:10.5]}
11... Qd7 {[%clk 0:01:17]} 12. Rh1 {[%clk 0:01:53.8]} 12... O-O-O {[%clk
0:01:15.9]} 13. Qxa7 {[%clk 0:01:54.3]} 13... Qf5 {[%clk 0:01:02.2]} 14. Bxf6
{[%clk 0:01:17.9]} 14... exf6 {[%clk 0:01:02.9]} 15. Nd4 {[%clk 0:01:18.2]}
15... Qe5 {[%clk 0:00:50.3]} 16. Nc6 {[%clk 0:01:10.9]} 16... Qf4 {[%clk
0:00:21.1]} 17. Qb8+ {[%clk 0:01:05.3]} 17... Kd7 {[%clk 0:00:21.9]} 18. Qxb7
{[%clk 0:01:07.2]} 18... Nd6 {[%clk 0:00:21.3]} 19. Qa6 {[%clk 0:00:58.8]} 19...
Re8 {[%clk 0:00:21.9]} 20. Qa4 {[%clk 0:00:57.3]} 20... Kc8 {[%clk 0:00:21.7]}
21. Qa8+ {[%clk 0:00:37.8]} 21... Kd7 {[%clk 0:00:22.3]} 22. Qa4 {[%clk
0:00:39.7]} 22... Kc8 {[%clk 0:00:23.5]} 23. e3 {[%clk 0:00:29.3]} 23... Qf3
{[%clk 0:00:23.1]} 24. Rf1 {[%clk 0:00:26.3]} 24... h5 {[%clk 0:00:23.5]} 25.
Nd4 {[%clk 0:00:17.7]} 25... Rxe3+ {[%clk 0:00:22.6]} 26. fxe3 {[%clk
0:00:17.2]} 26... Qxe3+ {[%clk 0:00:24.5]} 27. Nde2 {[%clk 0:00:18.8]} 27... h4
{[%clk 0:00:22.8]} 28. Qa8+ {[%clk 0:00:16.4]} 28... Kd7 {[%clk 0:00:23.7]} 29.
Qa4+ {[%clk 0:00:18.3]} 29... Kd8 {[%clk 0:00:23.9]} 30. Qc2 {[%clk 0:00:18.5]}
30... h3 {[%clk 0:00:24.4]} 31. Qd2 {[%clk 0:00:19.9]} 31... Qe5 {[%clk
0:00:22.2]} 32. O-O-O {[%clk 0:00:20.9]} 32... g6 {[%clk 0:00:23.5]} 33. Kb1
{[%clk 0:00:21.5]} 33... Bh6 {[%clk 0:00:23.7]} 34. Qc2 {[%clk 0:00:22.7]} 34...
h2 {[%clk 0:00:23.4]} 35. Qxg6 {[%clk 0:00:21.1]} 35... Be3 {[%clk 0:00:19]} 36.
Qg7 {[%clk 0:00:17.9]} 36... Rh4 {[%clk 0:00:11.1]} 37. Qg8+ {[%clk 0:00:15.9]}
37... Kd7 {[%clk 0:00:11.1]} 38. Qe6+ {[%clk 0:00:14.7]} 38... Qxe6 {[%clk
0:00:12.3]} 39. dxe6+ {[%clk 0:00:16.6]} 39... Kxe6 {[%clk 0:00:14.1]} 40. Nd5
{[%clk 0:00:18.2]} 40... Bg1 {[%clk 0:00:13.3]} 41. Rxg1 {[%clk 0:00:17.4]}
41... hxg1=Q {[%clk 0:00:13.8]} 42. Ndf4+ {[%clk 0:00:18.4]} 42... Rxf4 {[%clk
0:00:10.5]} 43. Nxf4+ {[%clk 0:00:19.9]} 43... Kf5 {[%clk 0:00:11.7]} 44. Rxg1
{[%clk 0:00:21.1]} 44... Kxf4 {[%clk 0:00:13.6]} 45. a4 {[%clk 0:00:22.3]} 45...
Ke3 {[%clk 0:00:14]} 46. a5 {[%clk 0:00:22.9]} 46... f5 {[%clk 0:00:15.2]} 47.
a6 {[%clk 0:00:24.2]} 47... Nb5 {[%clk 0:00:16.4]} 48. Rg5 {[%clk 0:00:22.9]}
48... Kf4 {[%clk 0:00:16.8]} 49. Rg8 {[%clk 0:00:24.2]} 49... Ke3 {[%clk
0:00:17.6]} 50. Rb8 {[%clk 0:00:25.3]} 50... Na7 {[%clk 0:00:18.1]} 51. Rb7
{[%clk 0:00:26.4]} 51... Nc6 {[%clk 0:00:19.4]} 52. Rxc7 {[%clk 0:00:27.6]}
52... f4 {[%clk 0:00:15.9]} 53. Rxc6 {[%clk 0:00:28.4]} 53... f3 {[%clk
0:00:17.3]} 54. Rf6 {[%clk 0:00:29.4]} 1-0